[Event "Early-Titled-Tuesday-Blitz-September-26-2023"]
[Site "Chess.com"]
[Date "2023.09.26"]
[Round "4"]
[White "PeshkaCh"]
[Black "jcibarra"]
[Result "1/2-1/2"]
[WhiteElo "2808"]
[BlackElo "2947"]
[TimeControl "180+1"]
[EndTime "8:41:21 PDT"]
[Termination "Game drawn by repetition"]

1. Nf3 {[%clk 0:03:00.9]} 1... d6 {[%clk 0:02:59.7]} 2. d4 {[%clk 0:02:58.1]}
2... Nf6 {[%clk 0:02:59.5]} 3. c4 {[%clk 0:02:57.6]} 3... g6 {[%clk 0:02:59.6]}
4. g3 {[%clk 0:02:57.9]} 4... Bf5 {[%clk 0:02:59.6]} 5. Nc3 {[%clk 0:02:57.3]}
5... Ne4 {[%clk 0:02:59.2]} 6. Nxe4 {[%clk 0:02:57.3]} 6... Bxe4 {[%clk
0:02:59.5]} 7. Bg2 {[%clk 0:02:58]} 7... Bg7 {[%clk 0:02:59.6]} 8. O-O {[%clk
0:02:58.6]} 8... O-O {[%clk 0:02:59.4]} 9. b3 {[%clk 0:02:57.6]} 9... c5 {[%clk
0:02:59.2]} 10. Bb2 {[%clk 0:02:58.2]} 10... Nc6 {[%clk 0:02:59.7]} 11. e3
{[%clk 0:02:55.3]} 11... d5 {[%clk 0:03:00.2]} 12. Qe2 {[%clk 0:02:24.5]} 12...
dxc4 {[%clk 0:02:54.4]} 13. bxc4 {[%clk 0:02:16.3]} 13... cxd4 {[%clk
0:02:49.8]} 14. exd4 {[%clk 0:01:54.4]} 14... Bxf3 {[%clk 0:02:49.3]} 15. Bxf3
{[%clk 0:01:54.9]} 15... Nxd4 {[%clk 0:02:45.4]} 16. Bxd4 {[%clk 0:01:52.6]}
16... Bxd4 {[%clk 0:02:32.1]} 17. Bxb7 {[%clk 0:01:51.8]} 17... Rb8 {[%clk
0:02:11.8]} 18. Rab1 {[%clk 0:01:51.5]} 18... e6 {[%clk 0:02:07.2]} 19. Rfd1
{[%clk 0:01:47.9]} 19... Qf6 {[%clk 0:02:05.8]} 20. Bf3 {[%clk 0:01:46.2]} 20...
Rfc8 {[%clk 0:02:00.3]} 21. Kg2 {[%clk 0:01:42.9]} 21... Kg7 {[%clk 0:01:55.5]}
22. h4 {[%clk 0:01:41.8]} 22... h5 {[%clk 0:01:55.2]} 23. Rxb8 {[%clk
0:01:37.6]} 23... Rxb8 {[%clk 0:01:55.1]} 24. Qd3 {[%clk 0:01:38.3]} 24... Bc5
{[%clk 0:01:45.3]} 25. Rb1 {[%clk 0:01:24.9]} 25... Rxb1 {[%clk 0:01:24.9]} 26.
Qxb1 {[%clk 0:01:25.8]} 26... Qc3 {[%clk 0:01:23.6]} 27. Qe4 {[%clk 0:01:18.2]}
27... Qb2 {[%clk 0:01:18.5]} 28. Qe2 {[%clk 0:01:17.8]} 28... Qc3 {[%clk
0:01:14.3]} 29. Bc6 {[%clk 0:01:17.7]} 29... a5 {[%clk 0:01:04.5]} 30. a4 {[%clk
0:01:13.9]} 30... Kf8 {[%clk 0:00:58.6]} 31. Bb5 {[%clk 0:01:04.2]} 31... Ke7
{[%clk 0:00:57]} 32. Qf3 {[%clk 0:01:04.7]} 32... Qd4 {[%clk 0:00:53.2]} 33.
Qb7+ {[%clk 0:01:04.6]} 33... Kf8 {[%clk 0:00:53]} 34. Qa8+ {[%clk 0:01:02.4]}
34... Kg7 {[%clk 0:00:53.1]} 35. Qf3 {[%clk 0:01:02.4]} 35... f5 {[%clk
0:00:50.4]} 36. Qf4 {[%clk 0:00:41.2]} 36... Qxf4 {[%clk 0:00:13.6]} 37. gxf4
{[%clk 0:00:42.1]} 37... Kf7 {[%clk 0:00:13]} 38. Kg3 {[%clk 0:00:41.2]} 38...
Ke7 {[%clk 0:00:13.1]} 39. Bc6 {[%clk 0:00:35.9]} 39... Bb4 {[%clk 0:00:13.2]}
40. Bb5 {[%clk 0:00:36.2]} 40... Bc3 {[%clk 0:00:12]} 41. Bc6 {[%clk 0:00:36.4]}
41... Bd4 {[%clk 0:00:12.2]} 42. Bb5 {[%clk 0:00:36.7]} 42... Kf7 {[%clk
0:00:12.1]} 43. Bc6 {[%clk 0:00:37]} 43... Kf6 {[%clk 0:00:12.7]} 44. Bb5 {[%clk
0:00:36.8]} 44... Bc5 {[%clk 0:00:12.6]} 45. Bc6 {[%clk 0:00:37]} 45... Bd6
{[%clk 0:00:13.1]} 46. Bb5 {[%clk 0:00:36.9]} 46... Bc7 {[%clk 0:00:13]} 47. Bc6
{[%clk 0:00:36.9]} 47... e5 {[%clk 0:00:12.8]} 48. fxe5+ {[%clk 0:00:37.2]}
48... Kxe5 {[%clk 0:00:13.6]} 49. Be8 {[%clk 0:00:32.8]} 49... Kf6+ {[%clk
0:00:11.1]} 50. Kh3 {[%clk 0:00:33.2]} 50... Bd6 {[%clk 0:00:10.7]} 51. f3
{[%clk 0:00:33.5]} 51... Bc5 {[%clk 0:00:10.8]} 52. Kg2 {[%clk 0:00:32.2]} 52...
Bb4 {[%clk 0:00:10.4]} 53. Kh3 {[%clk 0:00:32.8]} 53... Bc5 {[%clk 0:00:08.5]}
54. Kg3 {[%clk 0:00:33.2]} 54... Kg7 {[%clk 0:00:09.2]} 55. Kh3 {[%clk
0:00:33.6]} 55... Bf2 {[%clk 0:00:08.5]} 56. Bd7 {[%clk 0:00:31.5]} 56... Kf7
{[%clk 0:00:08.6]} 57. Bc6 {[%clk 0:00:30.6]} 57... Ke7 {[%clk 0:00:08.4]} 58.
Bb5 {[%clk 0:00:30.9]} 58... Be1 {[%clk 0:00:06.7]} 59. Bc6 {[%clk 0:00:30.5]}
59... Kf6 {[%clk 0:00:05]} 60. Be8 {[%clk 0:00:30.7]} 60... Bf2 {[%clk
0:00:05.1]} 61. Bd7 {[%clk 0:00:29.4]} 61... Kf7 {[%clk 0:00:04.8]} 62. Bb5
{[%clk 0:00:29.6]} 62... Kg7 {[%clk 0:00:05.1]} 63. Be8 {[%clk 0:00:29.4]} 63...
Kh6 {[%clk 0:00:05.4]} 64. Bd7 {[%clk 0:00:27.9]} 64... Be3 {[%clk 0:00:05.4]}
65. Be8 {[%clk 0:00:27.9]} 65... Bc5 {[%clk 0:00:05.7]} 66. Bd7 {[%clk
0:00:28.2]} 66... g5 {[%clk 0:00:06.2]} 67. Bxf5 {[%clk 0:00:27.6]} 67... gxh4
{[%clk 0:00:06.5]} 68. Kxh4 {[%clk 0:00:28.5]} 68... Be7+ {[%clk 0:00:06.8]} 69.
Kg3 {[%clk 0:00:28.7]} 69... Kg5 {[%clk 0:00:07.6]} 70. Bh3 {[%clk 0:00:25.2]}
70... h4+ {[%clk 0:00:07.4]} 71. Kg2 {[%clk 0:00:25.3]} 71... Kf4 {[%clk
0:00:08]} 72. Bd7 {[%clk 0:00:25.9]} 72... Bc5 {[%clk 0:00:08.3]} 73. Bc6 {[%clk
0:00:25.6]} 73... Be7 {[%clk 0:00:08.2]} 74. Kh3 {[%clk 0:00:26.2]} 74... Kf5
{[%clk 0:00:04.7]} 75. Be4+ {[%clk 0:00:25.6]} 75... Kf4 {[%clk 0:00:05.1]} 76.
Bd5 {[%clk 0:00:25.6]} 76... Kf5 {[%clk 0:00:03.8]} 77. Bb7 {[%clk 0:00:25.6]}
77... Kf4 {[%clk 0:00:04.2]} 78. Kg2 {[%clk 0:00:24.8]} 78... Ke3 {[%clk
0:00:03.8]} 79. Bc6 {[%clk 0:00:23.8]} 79... Kf4 {[%clk 0:00:04.3]} 80. Bd7
{[%clk 0:00:22.8]} 80... Bc5 {[%clk 0:00:04.1]} 81. Bg4 {[%clk 0:00:18.8]} 81...
Be7 {[%clk 0:00:05]} 82. Kf2 {[%clk 0:00:18.3]} 82... Bc5+ {[%clk 0:00:05.4]}
83. Kg2 {[%clk 0:00:18.1]} 83... Be7 {[%clk 0:00:05.6]} 84. Bd7 {[%clk
0:00:18.3]} 1/2-1/2

[Event "Early-Titled-Tuesday-Blitz-September-26-2023"]
[Site "Chess.com"]
[Date "2023.09.26"]
[Round "4"]
[White "MokshanovAlexey"]
[Black "Zhigalko_Sergei"]
[Result "0-1"]
[WhiteElo "2670"]
[BlackElo "2840"]
[TimeControl "180+1"]
[EndTime "8:41:40 PDT"]
[Termination "Zhigalko_Sergei won by resignation"]

1. e4 {[%clk 0:03:00.9]} 1... c5 {[%clk 0:03:00]} 2. Nf3 {[%clk 0:03:00.9]} 2...
Nc6 {[%clk 0:03:00.6]} 3. Bb5 {[%clk 0:03:01]} 3... Nf6 {[%clk 0:03:01.1]} 4.
Bxc6 {[%clk 0:02:58.5]} 4... dxc6 {[%clk 0:03:01.3]} 5. Nc3 {[%clk 0:02:57.1]}
5... Bg4 {[%clk 0:03:01.5]} 6. h3 {[%clk 0:02:56.5]} 6... Bh5 {[%clk 0:02:59.3]}
7. d3 {[%clk 0:02:56.6]} 7... Qc7 {[%clk 0:02:59.3]} 8. Be3 {[%clk 0:02:52.5]}
8... Nd7 {[%clk 0:02:57.2]} 9. g4 {[%clk 0:02:49.9]} 9... Bg6 {[%clk 0:02:57.1]}
10. Qd2 {[%clk 0:02:50.5]} 10... e5 {[%clk 0:02:48.6]} 11. Nh4 {[%clk
0:02:41.6]} 11... O-O-O {[%clk 0:02:47.2]} 12. O-O-O {[%clk 0:02:40.7]} 12... f6
{[%clk 0:02:37.8]} 13. Nxg6 {[%clk 0:02:13.8]} 13... hxg6 {[%clk 0:02:37]} 14.
h4 {[%clk 0:02:14.2]} 14... Bd6 {[%clk 0:02:29.9]} 15. h5 {[%clk 0:02:11.6]}
15... g5 {[%clk 0:02:18.1]} 16. Ne2 {[%clk 0:02:07.9]} 16... Nf8 {[%clk
0:02:13.9]} 17. Ng3 {[%clk 0:02:07.3]} 17... Ne6 {[%clk 0:02:12.4]} 18. Nf5
{[%clk 0:02:07.4]} 18... Rd7 {[%clk 0:02:06.9]} 19. Kb1 {[%clk 0:02:03.6]} 19...
Rhd8 {[%clk 0:01:59.2]} 20. Qc3 {[%clk 0:02:00.2]} 20... Bf8 {[%clk 0:01:55.7]}
21. Qb3 {[%clk 0:01:52.2]} 21... Re8 {[%clk 0:01:52.2]} 22. f3 {[%clk
0:01:47.9]} 22... b5 {[%clk 0:01:31]} 23. a4 {[%clk 0:01:47.7]} 23... a6 {[%clk
0:01:17.2]} 24. axb5 {[%clk 0:01:44.6]} 24... cxb5 {[%clk 0:01:01]} 25. c4
{[%clk 0:01:35.9]} 25... Qc6 {[%clk 0:00:49.5]} 26. Kc2 {[%clk 0:01:31.2]} 26...
Red8 {[%clk 0:00:49]} 27. Rd2 {[%clk 0:01:31.5]} 27... Kb7 {[%clk 0:00:20.7]}
28. Ra1 {[%clk 0:01:29.5]} 28... Rc7 {[%clk 0:00:12.5]} 29. Ra5 {[%clk
0:01:13.4]} 29... Qb6 {[%clk 0:00:09.5]} 30. Qa2 {[%clk 0:00:51]} 30... Nd4+
{[%clk 0:00:09.2]} 31. Bxd4 {[%clk 0:00:18.2]} 31... cxd4 {[%clk 0:00:09.3]} 32.
b3 {[%clk 0:00:18.6]} 32... Bb4 {[%clk 0:00:09]} 33. Ra3 {[%clk 0:00:19.2]}
33... a5 {[%clk 0:00:03.3]} 34. Kd1 {[%clk 0:00:18.8]} 34... Ra8 {[%clk
0:00:03]} 35. Rc2 {[%clk 0:00:18.1]} 35... a4 {[%clk 0:00:03]} 36. bxa4 {[%clk
0:00:14.4]} 36... Bxa3 {[%clk 0:00:02.5]} 37. Qxa3 {[%clk 0:00:14.7]} 37... Rxa4
{[%clk 0:00:03.1]} 38. Qf8 {[%clk 0:00:12.1]} 38... bxc4 {[%clk 0:00:03.2]} 39.
Nd6+ {[%clk 0:00:12.3]} 39... Ka7 {[%clk 0:00:02.7]} 40. Nxc4 {[%clk 0:00:08.9]}
40... Qb1+ {[%clk 0:00:02.2]} 41. Kd2 {[%clk 0:00:05.8]} 41... Ra2 {[%clk
0:00:02.8]} 42. Rxa2+ {[%clk 0:00:04.2]} 42... Qxa2+ {[%clk 0:00:03.7]} 43. Kd1
{[%clk 0:00:04.8]} 43... Qb1+ {[%clk 0:00:03.1]} 44. Kd2 {[%clk 0:00:05.3]}
44... Qa2+ {[%clk 0:00:03.2]} 45. Kd1 {[%clk 0:00:05.8]} 45... Qb3+ {[%clk
0:00:03.4]} 46. Kd2 {[%clk 0:00:06]} 46... Qc3+ {[%clk 0:00:03.8]} 47. Ke2
{[%clk 0:00:05.3]} 47... Rxc4 {[%clk 0:00:04.3]} 48. dxc4 {[%clk 0:00:04.1]}
48... Qxc4+ {[%clk 0:00:04.3]} 49. Kf2 {[%clk 0:00:04.8]} 49... Qc2+ {[%clk
0:00:03.7]} 50. Kg3 {[%clk 0:00:05.3]} 50... Qc7 {[%clk 0:00:03.5]} 51. Qb4
{[%clk 0:00:04.2]} 51... Qd7 {[%clk 0:00:02]} 52. Qc5+ {[%clk 0:00:03.6]} 52...
Kb7 {[%clk 0:00:02.5]} 53. Qb4+ {[%clk 0:00:03.2]} 53... Kc7 {[%clk 0:00:03.1]}
54. Qc5+ {[%clk 0:00:03.6]} 54... Kb8 {[%clk 0:00:03.2]} 55. Qb4+ {[%clk
0:00:03.6]} 55... Kc8 {[%clk 0:00:03.7]} 56. Qc5+ {[%clk 0:00:03.8]} 56... Kb7
{[%clk 0:00:03.4]} 57. Qb4+ {[%clk 0:00:04.1]} 57... Ka6 {[%clk 0:00:03.9]} 58.
Qa3+ {[%clk 0:00:03.2]} 58... Kb5 {[%clk 0:00:04.2]} 59. Qb3+ {[%clk 0:00:03.6]}
59... Ka5 {[%clk 0:00:04.7]} 60. Qa3+ {[%clk 0:00:03.5]} 60... Qa4 {[%clk
0:00:05]} 61. Qc5+ {[%clk 0:00:03.6]} 61... Qb5 {[%clk 0:00:04.9]} 62. Qa3+
{[%clk 0:00:03.9]} 62... Kb6 {[%clk 0:00:04.8]} 63. Qd6+ {[%clk 0:00:04]} 63...
Qc6 {[%clk 0:00:05.1]} 64. Qb4+ {[%clk 0:00:04.4]} 64... Ka6 {[%clk 0:00:05.5]}
65. Qa3+ {[%clk 0:00:04.5]} 65... Kb7 {[%clk 0:00:05.3]} 66. Qb4+ {[%clk
0:00:04.8]} 66... Ka7 {[%clk 0:00:03]} 67. Qa3+ {[%clk 0:00:05]} 67... Kb6
{[%clk 0:00:03.6]} 68. Qb4+ {[%clk 0:00:05.4]} 68... Qb5 {[%clk 0:00:03.6]} 69.
Qd6+ {[%clk 0:00:05.5]} 69... Ka5 {[%clk 0:00:02.9]} 70. Qa3+ {[%clk 0:00:05.8]}
70... Qa4 {[%clk 0:00:03.2]} 71. Qc5+ {[%clk 0:00:06.2]} 71... Ka6 {[%clk
0:00:03.7]} 72. Qd6+ {[%clk 0:00:06.2]} 72... Kb5 {[%clk 0:00:03.3]} 73. Qd7+
{[%clk 0:00:06.6]} 73... Kb4 {[%clk 0:00:03.4]} 74. Qxg7 {[%clk 0:00:06.6]}
74... d3 {[%clk 0:00:03.8]} 75. Qf8+ {[%clk 0:00:06.4]} 75... Kc3 {[%clk
0:00:04]} 76. Qd8 {[%clk 0:00:05.2]} 76... d2 {[%clk 0:00:03.7]} 77. h6 {[%clk
0:00:05.3]} 77... Qd4 {[%clk 0:00:03.7]} 78. Qxd4+ {[%clk 0:00:03.4]} 78... Kxd4
{[%clk 0:00:03.8]} 79. h7 {[%clk 0:00:03.8]} 79... d1=Q {[%clk 0:00:04.5]} 80.
Kg2 {[%clk 0:00:02.5]} 80... Qe2+ {[%clk 0:00:04.6]} 81. Kg3 {[%clk 0:00:01.7]}
81... Qe1+ {[%clk 0:00:04.7]} 82. Kg2 {[%clk 0:00:02.2]} 82... Qh4 {[%clk
0:00:05.1]} 0-1

[Event "Early-Titled-Tuesday-Blitz-September-26-2023"]
[Site "Chess.com"]
[Date "2023.09.26"]
[Round "4"]
[White "Yurasova_Daria"]
[Black "ElenaPershina"]
[Result "0-1"]
[WhiteElo "2488"]
[BlackElo "2321"]
[TimeControl "180+1"]
[EndTime "8:41:41 PDT"]
[Termination "ElenaPershina won on time"]

1. d4 {[%clk 0:03:00.2]} 1... d5 {[%clk 0:02:59.3]} 2. Nf3 {[%clk 0:02:59.4]}
2... Nf6 {[%clk 0:02:58.4]} 3. Bf4 {[%clk 0:02:57.6]} 3... c5 {[%clk 0:02:57.7]}
4. e3 {[%clk 0:02:55]} 4... Nc6 {[%clk 0:02:57.3]} 5. Bd3 {[%clk 0:02:52.7]}
5... Bg4 {[%clk 0:02:57.2]} 6. Nbd2 {[%clk 0:02:50.9]} 6... e6 {[%clk 0:02:55]}
7. O-O {[%clk 0:02:45]} 7... Bd6 {[%clk 0:02:53.6]} 8. Bg3 {[%clk 0:02:43.9]}
8... Bxg3 {[%clk 0:02:50.9]} 9. hxg3 {[%clk 0:02:41.9]} 9... c4 {[%clk
0:02:38.4]} 10. Be2 {[%clk 0:02:30]} 10... O-O {[%clk 0:02:30]} 11. c3 {[%clk
0:02:29.3]} 11... b5 {[%clk 0:02:26.6]} 12. e4 {[%clk 0:02:23.3]} 12... Nxe4
{[%clk 0:02:11.6]} 13. Nxe4 {[%clk 0:02:19.5]} 13... dxe4 {[%clk 0:02:12.5]} 14.
Nd2 {[%clk 0:02:16]} 14... Bf5 {[%clk 0:02:06.1]} 15. Bg4 {[%clk 0:02:10.6]}
15... Qd5 {[%clk 0:02:01.1]} 16. Qe2 {[%clk 0:02:03.5]} 16... Bxg4 {[%clk
0:01:58.2]} 17. Qxg4 {[%clk 0:01:59.7]} 17... f5 {[%clk 0:01:57]} 18. Qf4 {[%clk
0:01:58.4]} 18... e5 {[%clk 0:01:49.9]} 19. dxe5 {[%clk 0:01:58.6]} 19... Nxe5
{[%clk 0:01:47.1]} 20. Rfd1 {[%clk 0:01:54.9]} 20... Nd3 {[%clk 0:01:46.1]} 21.
Qe3 {[%clk 0:01:53.2]} 21... Nxb2 {[%clk 0:01:41.4]} 22. Rdb1 {[%clk 0:01:47.4]}
22... Nd3 {[%clk 0:01:40.4]} 23. a4 {[%clk 0:01:44.8]} 23... a6 {[%clk
0:01:38.5]} 24. Nf1 {[%clk 0:01:31.9]} 24... h6 {[%clk 0:01:30]} 25. Qb6 {[%clk
0:01:30.6]} 25... Rfb8 {[%clk 0:01:22.3]} 26. Qe3 {[%clk 0:01:13.9]} 26... b4
{[%clk 0:01:08.1]} 27. cxb4 {[%clk 0:01:06.6]} 27... Rxb4 {[%clk 0:01:09]} 28.
Rxb4 {[%clk 0:00:59.9]} 28... Nxb4 {[%clk 0:01:09.9]} 29. Rc1 {[%clk 0:00:59.5]}
29... Nd3 {[%clk 0:01:06.1]} 30. Rc2 {[%clk 0:00:57.8]} 30... Rc8 {[%clk
0:00:54.1]} 31. Rc3 {[%clk 0:00:48.1]} 31... Qc5 {[%clk 0:00:45.7]} 32. Qe2
{[%clk 0:00:41.5]} 32... Qd4 {[%clk 0:00:34.1]} 33. Rc2 {[%clk 0:00:29.5]} 33...
c3 {[%clk 0:00:34.1]} 34. Ne3 {[%clk 0:00:27.9]} 34... Rc5 {[%clk 0:00:32.5]}
35. Qh5 {[%clk 0:00:25.4]} 35... Qe5 {[%clk 0:00:22.8]} 36. Qg6 {[%clk
0:00:20.4]} 36... Nb4 {[%clk 0:00:18.8]} 37. Rc1 {[%clk 0:00:20.6]} 37... c2
{[%clk 0:00:18.6]} 38. Qb6 {[%clk 0:00:17.2]} 38... Nd3 {[%clk 0:00:13.8]} 39.
Rxc2 {[%clk 0:00:15.4]} 39... Rxc2 {[%clk 0:00:14.3]} 40. Nxc2 {[%clk
0:00:16.3]} 40... Qc5 {[%clk 0:00:09.2]} 41. Qd8+ {[%clk 0:00:12.3]} 41... Kh7
{[%clk 0:00:08.3]} 42. Ne3 {[%clk 0:00:12.2]} 42... a5 {[%clk 0:00:04.5]} 43. g4
{[%clk 0:00:09.3]} 43... f4 {[%clk 0:00:03.4]} 44. Qe8 {[%clk 0:00:04]} 44...
fxe3 {[%clk 0:00:02.8]} 45. Qxe4+ {[%clk 0:00:03.9]} 45... Kg8 {[%clk
0:00:03.1]} 46. Qxd3 {[%clk 0:00:00.6]} 46... exf2+ {[%clk 0:00:02.9]} 47. Kf1
{[%clk 0:00:01]} 47... Qc1+ {[%clk 0:00:02.9]} 48. Kxf2 {[%clk 0:00:01.6]} 48...
Qf4+ {[%clk 0:00:03.5]} 49. Qf3 {[%clk 0:00:02]} 49... Qd2+ {[%clk 0:00:03.8]}
50. Qe2 {[%clk 0:00:02.2]} 50... Qd4+ {[%clk 0:00:03]} 51. Kf1 {[%clk
0:00:02.3]} 51... Qxa4 {[%clk 0:00:02.6]} 52. Qe6+ {[%clk 0:00:02]} 52... Kh7
{[%clk 0:00:02.8]} 53. Qf5+ {[%clk 0:00:02.7]} 53... Kg8 {[%clk 0:00:03.2]} 54.
Qc8+ {[%clk 0:00:03]} 54... Kh7 {[%clk 0:00:03.3]} 55. Qf5+ {[%clk 0:00:03.4]}
55... Kg8 {[%clk 0:00:03.6]} 56. g5 {[%clk 0:00:03.6]} 56... hxg5 {[%clk
0:00:03.4]} 57. Qxg5 {[%clk 0:00:04.5]} 57... Qd1+ {[%clk 0:00:03.4]} 58. Kf2
{[%clk 0:00:04.9]} 58... Qc2+ {[%clk 0:00:04]} 59. Kg3 {[%clk 0:00:04.7]} 59...
Qd3+ {[%clk 0:00:04]} 60. Kh2 {[%clk 0:00:03.5]} 60... Qd6+ {[%clk 0:00:04.1]}
61. g3 {[%clk 0:00:03.9]} 61... a4 {[%clk 0:00:04.4]} 62. Qa5 {[%clk 0:00:02.9]}
62... a3 {[%clk 0:00:04.2]} 63. Qa8+ {[%clk 0:00:03.2]} 63... Kh7 {[%clk
0:00:04.3]} 64. Qe4+ {[%clk 0:00:03.9]} 64... Kg8 {[%clk 0:00:03.5]} 65. Qc4+
{[%clk 0:00:01.7]} 65... Kh7 {[%clk 0:00:03.3]} 66. Qe4+ {[%clk 0:00:02.3]}
66... Kh6 {[%clk 0:00:03.2]} 67. Qe3+ {[%clk 0:00:02.1]} 67... Kg6 {[%clk
0:00:02.9]} 68. Qe4+ {[%clk 0:00:02.6]} 68... Kf6 {[%clk 0:00:03.2]} 69. Qa4
{[%clk 0:00:02.5]} 69... Qd2+ {[%clk 0:00:02.6]} 70. Kh3 {[%clk 0:00:01.7]}
70... a2 {[%clk 0:00:03]} 71. Qa6+ {[%clk 0:00:02.1]} 71... Kf7 {[%clk
0:00:03.4]} 72. Qa7+ {[%clk 0:00:01.9]} 72... Kf6 {[%clk 0:00:03.3]} 73. Qa6+
{[%clk 0:00:02.2]} 73... Ke7 {[%clk 0:00:03.9]} 74. Qa7+ {[%clk 0:00:02.6]}
74... Qd7+ {[%clk 0:00:04.1]} 75. Qxd7+ {[%clk 0:00:01.5]} 75... Kxd7 {[%clk
0:00:05]} 0-1

[Event "Early-Titled-Tuesday-Blitz-September-26-2023"]
[Site "Chess.com"]
[Date "2023.09.26"]
[Round "4"]
[White "Aleksandar-Topalov"]
[Black "bubeliang"]
[Result "0-1"]
[WhiteElo "2392"]
[BlackElo "2633"]
[TimeControl "180+1"]
[EndTime "8:41:53 PDT"]
[Termination "bubeliang won by resignation"]

1. b3 {[%clk 0:03:00.9]} 1... b6 {[%clk 0:02:58.6]} 2. Bb2 {[%clk 0:03:00.4]}
2... Bb7 {[%clk 0:02:59.1]} 3. Nf3 {[%clk 0:03:00.4]} 3... f5 {[%clk 0:02:59]}
4. c4 {[%clk 0:02:52.2]} 4... e6 {[%clk 0:02:58]} 5. g3 {[%clk 0:02:48.7]} 5...
Nf6 {[%clk 0:02:57.6]} 6. Bg2 {[%clk 0:02:48.4]} 6... Be7 {[%clk 0:02:57.8]} 7.
O-O {[%clk 0:02:47.7]} 7... O-O {[%clk 0:02:57.6]} 8. d4 {[%clk 0:02:40.7]} 8...
d6 {[%clk 0:02:52.6]} 9. Nc3 {[%clk 0:02:23.6]} 9... h6 {[%clk 0:02:49.3]} 10.
d5 {[%clk 0:02:22.1]} 10... e5 {[%clk 0:02:48.8]} 11. Nh4 {[%clk 0:02:22]} 11...
Bc8 {[%clk 0:02:34]} 12. Ng6 {[%clk 0:02:18.8]} 12... Rf7 {[%clk 0:02:31]} 13.
Nxe7+ {[%clk 0:02:18.8]} 13... Qxe7 {[%clk 0:02:30.6]} 14. Qd2 {[%clk
0:02:16.6]} 14... a5 {[%clk 0:02:30.3]} 15. e3 {[%clk 0:02:15.9]} 15... Nbd7
{[%clk 0:02:28.6]} 16. a3 {[%clk 0:02:08.9]} 16... Ba6 {[%clk 0:02:16.7]} 17.
Qc2 {[%clk 0:01:56.7]} 17... e4 {[%clk 0:02:02.5]} 18. Ne2 {[%clk 0:01:41.7]}
18... Ne5 {[%clk 0:02:00]} 19. Nd4 {[%clk 0:01:35]} 19... g6 {[%clk 0:01:56.7]}
20. Ne6 {[%clk 0:01:24.9]} 20... Bc8 {[%clk 0:01:54.8]} 21. Nd4 {[%clk
0:01:18.2]} 21... Bd7 {[%clk 0:01:53.4]} 22. b4 {[%clk 0:01:16.6]} 22... a4
{[%clk 0:01:49.7]} 23. Rad1 {[%clk 0:01:05.7]} 23... Kh7 {[%clk 0:01:42.4]} 24.
Rd2 {[%clk 0:00:37.3]} 24... Re8 {[%clk 0:01:33.5]} 25. Nb5 {[%clk 0:00:33.6]}
25... Bxb5 {[%clk 0:01:28]} 26. cxb5 {[%clk 0:00:33.8]} 26... Nf3+ {[%clk
0:01:24.1]} 27. Bxf3 {[%clk 0:00:27.6]} 27... exf3 {[%clk 0:01:25]} 28. Bxf6
{[%clk 0:00:27.4]} 28... Qxf6 {[%clk 0:01:23.5]} 29. Qd1 {[%clk 0:00:27.4]}
29... Qc3 {[%clk 0:01:17.1]} 30. Rd3 {[%clk 0:00:20.9]} 30... Qc4 {[%clk
0:01:16.5]} 31. Rd4 {[%clk 0:00:20.9]} 31... Qc3 {[%clk 0:01:13.1]} 32. Qxf3
{[%clk 0:00:20.2]} 32... Qxa3 {[%clk 0:01:13]} 33. h4 {[%clk 0:00:19.2]} 33...
Qc3 {[%clk 0:01:09.9]} 34. Rfd1 {[%clk 0:00:18.1]} 34... a3 {[%clk 0:01:09.6]}
35. R4d3 {[%clk 0:00:18.4]} 35... Qb2 {[%clk 0:01:07.7]} 36. R3d2 {[%clk
0:00:18.1]} 36... Qxb4 {[%clk 0:01:06.6]} 37. h5 {[%clk 0:00:16.7]} 37... g5
{[%clk 0:01:04.9]} 38. Qe2 {[%clk 0:00:15.6]} 38... Ra8 {[%clk 0:01:02.7]} 39.
Ra2 {[%clk 0:00:14]} 39... Qb3 {[%clk 0:01:01.5]} 40. Rda1 {[%clk 0:00:11.6]}
40... Re7 {[%clk 0:00:54.1]} 41. Qd2 {[%clk 0:00:11.4]} 41... Re4 {[%clk
0:00:52.4]} 42. Qc1 {[%clk 0:00:11.3]} 42... Rc4 {[%clk 0:00:48.6]} 43. Qd2
{[%clk 0:00:10.6]} 43... Qxb5 {[%clk 0:00:47.5]} 44. Rxa3 {[%clk 0:00:09.7]}
44... Rxa3 {[%clk 0:00:47.9]} 45. Rxa3 {[%clk 0:00:10]} 45... Qb1+ {[%clk
0:00:48.3]} 46. Kg2 {[%clk 0:00:10.3]} 46... Qe4+ {[%clk 0:00:46.7]} 47. Kg1
{[%clk 0:00:09.4]} 47... Rc2 {[%clk 0:00:45.5]} 48. Qe1 {[%clk 0:00:08.8]} 48...
Rb2 {[%clk 0:00:42.6]} 49. Ra7 {[%clk 0:00:08.2]} 49... Rb1 {[%clk 0:00:41.9]}
50. Rxc7+ {[%clk 0:00:07.2]} 50... Kg8 {[%clk 0:00:42.5]} 51. Rc1 {[%clk
0:00:07.7]} 51... Rxc1 {[%clk 0:00:41.2]} 52. Qxc1 {[%clk 0:00:07.9]} 52... Qxd5
{[%clk 0:00:41.6]} 53. Qc8+ {[%clk 0:00:08.4]} 53... Kf7 {[%clk 0:00:39.4]} 54.
Qc7+ {[%clk 0:00:08.7]} 54... Kf6 {[%clk 0:00:36.4]} 55. Qh7 {[%clk 0:00:08.6]}
55... Qd1+ {[%clk 0:00:35.9]} 56. Kg2 {[%clk 0:00:08.5]} 56... Qxh5 {[%clk
0:00:36.2]} 57. Qd7 {[%clk 0:00:07.6]} 57... Qd1 {[%clk 0:00:23.6]} 58. Qd8+
{[%clk 0:00:06.6]} 58... Ke5 {[%clk 0:00:22.7]} 59. Qxb6 {[%clk 0:00:06.7]}
59... Qd5+ {[%clk 0:00:23.1]} 60. Kg1 {[%clk 0:00:06]} 60... Kf6 {[%clk
0:00:20.7]} 61. Qd8+ {[%clk 0:00:05.6]} 61... Kg6 {[%clk 0:00:21.1]} 62. Qe8+
{[%clk 0:00:05.9]} 62... Qf7 {[%clk 0:00:21.8]} 63. Qd8 {[%clk 0:00:05.6]} 63...
Qf6 {[%clk 0:00:21.9]} 64. Qe8+ {[%clk 0:00:05.3]} 64... Qf7 {[%clk 0:00:20.8]}
65. Qd8 {[%clk 0:00:05.6]} 65... d5 {[%clk 0:00:21.3]} 66. Qd6+ {[%clk
0:00:05.1]} 66... Kg7 {[%clk 0:00:21.2]} 67. Qd8 {[%clk 0:00:04.9]} 67... Qe6
{[%clk 0:00:19.3]} 68. Qc7+ {[%clk 0:00:04.7]} 68... Kg6 {[%clk 0:00:19.5]} 69.
Qd8 {[%clk 0:00:04.8]} 69... f4 {[%clk 0:00:19.3]} 70. gxf4 {[%clk 0:00:04.3]}
70... gxf4 {[%clk 0:00:20.2]} 71. exf4 {[%clk 0:00:02.7]} 71... Qg4+ {[%clk
0:00:20.5]} 72. Kf1 {[%clk 0:00:03.2]} 72... Qf3 {[%clk 0:00:19.9]} 73. Qd6+
{[%clk 0:00:02.5]} 73... Kf5 {[%clk 0:00:19.1]} 74. Qe5+ {[%clk 0:00:02.7]}
74... Kg4 {[%clk 0:00:19]} 75. f5 {[%clk 0:00:02.9]} 75... Qxf5 {[%clk
0:00:11.6]} 76. Qd4+ {[%clk 0:00:01.4]} 76... Qe4 {[%clk 0:00:10]} 77. Qg7+
{[%clk 0:00:01.4]} 77... Kh5 {[%clk 0:00:10.5]} 78. Qf7+ {[%clk 0:00:01.2]}
78... Kg5 {[%clk 0:00:10.5]} 79. Qg7+ {[%clk 0:00:01.5]} 79... Kh5 {[%clk
0:00:10.2]} 80. Qf7+ {[%clk 0:00:01.7]} 80... Kg5 {[%clk 0:00:07.9]} 81. Qg7+
{[%clk 0:00:01.9]} 81... Qg6 {[%clk 0:00:08.6]} 82. Qe5+ {[%clk 0:00:01.8]}
82... Qf5 {[%clk 0:00:08.9]} 83. Qg7+ {[%clk 0:00:02.2]} 83... Kh5 {[%clk
0:00:09.4]} 84. Qg3 {[%clk 0:00:02.4]} 84... Qb1+ {[%clk 0:00:08.5]} 85. Kg2
{[%clk 0:00:02.9]} 85... Qe4+ {[%clk 0:00:09.2]} 86. Kh2 {[%clk 0:00:02.6]}
86... Qh4+ {[%clk 0:00:09.4]} 87. Qxh4+ {[%clk 0:00:02.5]} 87... Kxh4 {[%clk
0:00:10.3]} 88. Kg2 {[%clk 0:00:03.1]} 88... Kg4 {[%clk 0:00:10.9]} 89. f3+
{[%clk 0:00:01.9]} 89... Kf4 {[%clk 0:00:11.6]} 90. Kf2 {[%clk 0:00:02.5]} 90...
d4 {[%clk 0:00:11.9]} 91. Ke2 {[%clk 0:00:02.8]} 91... d3+ {[%clk 0:00:12.5]}
92. Kxd3 {[%clk 0:00:03.1]} 92... Kxf3 {[%clk 0:00:13.4]} 0-1